Cogmind - Beta 9.6 *** ADVENTURER MODE // 2020.05.03 @ 17:21:05 Player: RembrandtFriday Result: Destroyed by D-53 Grenadier with Mini Grenade Launcher Performance ------------- Evolutions (1) 500 Regions Visited (3) 600 Robots Destroyed (46) 230 Value Destroyed (1110) 1110 Prototype IDs (3) 60 Alien Tech Used (0) 0 Bonus (2) 2 TOTAL SCORE: 2502 Bonus ------- High Alert Combat Kills 2 Cogmind --------- Core Integrity 0/400 Matter 300/300 Energy 250/250 System Corruption 0% Temperature Cool (0) Movement Walking (150) Ox1 Location -9/Mines Parts ------- > --- POWER (1) -------- Ion Engine > --- PROPULSION (2) --- Aluminum Leg Aluminum Leg > --- UTILITY (4) ------ Medium Storage Unit Medium Storage Unit Improved Terrain Scanner Terrain Scan Processor > --- WEAPON (2) ------- Ion Cannon > --- INVENTORY (12) --- Light Ion Engine Improved Ion Engine Aluminum Leg Wheel Flight Unit Improved Flight Unit Improved Heat Sink Melee Analysis Suite Heavy Assault Rifle High-powered Shotgun High-powered Shotgun Datajack Peak State ------------ > --- POWER ------------ Ion Engine > --- PROPULSION ------- Aluminum Leg Aluminum Leg > --- UTILITY ---------- Medium Storage Unit Medium Storage Unit Improved Terrain Scanner Terrain Scan Processor > --- WEAPON ----------- Ion Cannon Ion Cannon > --- INVENTORY -------- Light Ion Engine Improved Ion Engine Wheel Flight Unit Improved Flight Unit Heat Sink Melee Analysis Suite Heavy Assault Rifle High-powered Shotgun High-powered Shotgun Datajack [Rating: 17] Favorites ----------- Power Ion Engine Engine Ion Engine Power Core Light Nuclear Core Propulsion Wheel Treads Light Treads Leg Aluminum Leg Wheel Wheel Flight Unit Flight Unit Utility Medium Storage Unit Device Improved Terrain Scanner Storage Medium Storage Unit Processor Signal Interpreter Weapon Ion Cannon Energy Gun EM Pulse Gun Energy Cannon Ion Cannon Ballistic Gun Light Assault Rifle Special Melee Weapon Datajack Build | -11 -10 -9 -9 ------- Run | Scr Mat Mat Min Slots Evolved 2 | . . 2 . Power . | . . . . Propulsion . | . . . . Utility 2 | . . 2 . Weapon . | . . . . Parts Attached 33 | 5 5 23 . Power 5 | 1 1 3 . Engine 4 | 1 1 2 . Core 1 | . . 1 . Reactor . | . . . . Propulsion 9 | 2 . 7 . Treads 2 | . . 2 . Leg 2 | . . 2 . Wheel 2 | 2 . . . Hover . | . . . . Flight 3 | . . 3 . Utility 9 | 1 3 5 . Device 2 | . . 2 . Storage 3 | 1 1 1 . Processor 4 | . 2 2 . Hackware . | . . . . Protection . | . . . . Artifact . | . . . . Weapon 10 | 1 1 8 . Energy Gun 5 | 1 1 3 . Energy Cannon 2 | . . 2 . Ballistic Gun 2 | . . 2 . Ballistic Cannon . | . . . . Launcher . | . . . . Special Weapon . | . . . . Impact Weapon . | . . . . Slashing Weapon . | . . . . Piercing Weapon . | . . . . Special Melee Weapon 1 | . . 1 . Unidentified Prototypes 1 | . . 1 . Parts Lost 15 | . . 14 1 Power 2 | . . 2 . Propulsion 4 | . . 4 . Utility 1 | . . 1 . Weapon 8 | . . 7 1 Highest Loss Streak 5 | . . 5 1 Average Slot Usage (%) 93 | . 97 92 100 Engine 9 | . 14 8 11 Core 1 | . . 1 . Treads 5 | . . 7 . Leg 5 | . . 7 22 Wheel 8 | . 28 . . Flight 3 | . . 4 . Device 3 | . . 3 11 Storage 19 | . 14 22 22 Processor 13 | . 12 14 11 Energy Gun 13 | . 26 7 . Energy Cannon 6 | . . 8 22 Ballistic Gun 2 | . . 3 . Naked Turns . | . . . . Heaviest Build 34 | 11 17 34 34 Greatest Support 40 | 20 20 40 20 Greatest Overweight (x) 5 | 1 . 5 1 Average Overweight (x) . | . . . 1 Largest Inventory Capacity 12 | 6 8 12 12 Average Capacity 10 | 5 7 11 12 Most Carried 12 | 5 8 12 12 Average Carried 7 | 2 6 8 12 Final Capacity 12 | 6 8 12 12 Final Carried 12 | 5 8 12 12 Class Distribution -------------------- 61% | Mutant 38% | Scavenger-Mutant Dominant Class ---------------- Mutant | -10/Materials Scavenger-Mutant | -9/Materials Scavenger-Mutant | -9/Mines Resources | -11 -10 -9 -9 ----------- Run | Scr Mat Mat Min Matter Collected 484 | 245 55 184 . Remotely . | . . . . Salvage Created 1479 | . 388 1091 . Parts 116 | . 40 76 . Haulers Intercepted 1 | . . 1 . Recyclers Shooed . | . . . . Parts Field Recycled . | . . . . Retrieved Matter . | . . . . Parts Self-Destructed . | . . . . Prevented . | . . . . Kills | -11 -10 -9 -9 ------- Run | Scr Mat Mat Min Combat Hostiles Destroyed 35 | . 12 23 . Melee 1 | . . 1 . Guns 24 | . 11 13 . Cannons 7 | . . 7 . AOE 2 | . 1 1 . Classes Destroyed 8 | . 3 5 . Worker 3 | . . 3 . Builder 2 | . . 2 . Hauler 1 | . . 1 . Watcher 5 | . 2 3 . Swarmer 13 | . 6 7 . Grunt 16 | . 6 10 . Duelist 1 | . . 1 . Sentry 5 | . . 5 . Best Kill Streak 8 | . 5 8 . Combat Bots Only 8 | . 5 8 . Max Kills in Single Turn 2 | . 1 2 . Gunslinging 1 | . . 1 . Exploded 1 | . 1 1 . Melee 1 | . . 1 . Uniques/NPCs Destroyed . | . . . . Combat | -11 -10 -9 -9 -------- Run | Scr Mat Mat Min Damage Taken 1695 | . 176 1433 86 Core 447 | . 45 381 21 Absorbed by Shields . | . . . . Core Remaining (%) 91 | 100 82 . . Volleys Fired 92 | . 23 69 . Largest 2 | . 2 2 . Hottest 120 | . 90 120 . Shots Fired 149 | . 42 107 . Gun 126 | . 42 84 . Cannon 23 | . . 23 . Launcher . | . . . . Special . | . . . . Kinetic 24 | . . 24 . Thermal 50 | . 19 31 . Explosive . | . . . . Electromagnetic 75 | . 23 52 . Robot Hit Streak 32 | . 12 32 . Robot Miss Streak 3 | . 2 3 . Penetration Max . | . . . . Secondary Targets 4 | . 2 2 . Max Gunslinging Chain 1 | . 1 1 . Shots Hit Robots 121 | . 34 87 . Core Hits 64 | . 21 43 . Critical Hits . | . . . . Critical Kills . | . . . . Critical Parts Destroyed . | . . . . Melee Attacks 1 | . . 1 . Impact . | . . . . Slashing . | . . . . Piercing . | . . . . Sneak Attacks . | . . . . Combat Hostiles . | . . . . Follow-up Attacks . | . . . . Damage Inflicted 1929 | . 436 1493 . Guns 1324 | . 398 926 . Cannons 417 | . . 417 . Explosions 182 | . 38 144 . Melee . | . . . . Ramming 6 | . . 6 . Kinetic 175 | . . 175 . Thermal 737 | . 189 548 . Explosive 63 | . . 63 . Electromagnetic 948 | . 247 701 . Impact . | . . . . Slashing . | . . . . Piercing . | . . . . Highest Corruption . | . . . . Average Corruption . | . . . . Corruption Purged . | . . . . Overload Shots . | . . . . Overflow Damage 19 | . . 19 . Projectiles . | . . . . Explosions 19 | . . 19 . Melee . | . . . . Knockbacks . | . . . . Impact . | . . . . Kinetic . | . . . . Secondary . | . . . . Self-Inflicted Damage 87 | . . 87 . Shots 2 | . . 2 . Rammed 4 | . . 4 . Targets Rammed 4 | . . 4 . Kicked . | . . . . Crushed . | . . . . Highest Temperature 435 | . 222 435 . Average Temperature 90 | . 79 95 . Received Heat Transfer 492 | . 72 420 . Effects 2 | . . 2 . Short Circuit 1 | . . 1 . Damage (minor) 1 | . . 1 . Siege Activations . | . . . . Robots Corrupted 1 | . . 1 . Combat Hostiles 1 | . . 1 . Parts Fried 4 | . . 4 . Impact Corruptions . | . . . . Robots Melted . | . . . . Combat Hostiles . | . . . . Parts Melted 2 | . 1 1 . Heat Transferred 1408 | . 494 914 . Parts Sabotaged . | . . . . Parts Stolen . | . . . . Parts Stripped . | . . . . Power Chain Reactions 2 | . 1 1 . Missiles Intercepted . | . . . . Alert | -11 -10 -9 -9 ------- Run | Scr Mat Mat Min Peak Influence 416 | . 324 416 92 Average Influence 206 | . 196 226 87 Maximum Alert Level 2 | . 1 2 . Low Security (%) 45 | 100 47 40 100 Level 1 54 | . 52 59 . Level 2 . | . . . . Level 3 . | . . . . Level 4 . | . . . . Level 5 . | . . . . High Security . | . . . . Max Security . | . . . . Squads Dispatched 4 | . 2 2 . Investigation 2 | . 2 . . Extermination . | . . . . Reinforcement 2 | . . 2 . Assault . | . . . . Garrison . | . . . . Intercept . | . . . . Construction Impeded . | . . . . Haulers Reinforced . | . . . . Stealth | -11 -10 -9 -9 --------- Run | Scr Mat Mat Min Distress Signals 1 | . . 1 . Communications Jammed . | . . . . Distress Signals . | . . . . Times Spotted 53 | . 16 34 3 Peak Tracking Total 7 | . 3 7 4 Tactical Retreats 2 | . . 2 . Traps | -11 -10 -9 -9 ------- Run | Scr Mat Mat Min Traps Triggered 1 | . 1 . . Indirectly . | . . . . Trap Hack Attempts . | . . . . Triggered . | . . . . Disarmed 6 | . 6 . . Reprogrammed . | . . . . Reused . | . . . . Traps Extracted . | . . . . Installed . | . . . . Triggered . | . . . . Machines | -11 -10 -9 -9 ---------- Run | Scr Mat Mat Min Machines Disabled 4 | . 1 3 . Max in Single Turn 1 | . 1 1 . Machines Sabotaged . | . . . . Garrisons Compromised . | . . . . Overloaded Fab Kills . | . . . . Fab Network Shutdowns . | . . . . Hacking | -11 -10 -9 -9 --------- Run | Scr Mat Mat Min Machines Accessed 8 | . 5 3 . Terminals 8 | . 5 3 . Fabricators . | . . . . Repair Stations . | . . . . Recycling Units . | . . . . Scanalyzers . | . . . . Garrison Access . | . . . . Total Hacks 21 | . 15 6 . Successful 10 | . 7 3 . Failed 11 | . 8 3 . Catastrophic 2 | . 1 1 . Database Lockouts . | . . . . Manual 11 | . 10 1 . Terminals 21 | . 15 6 . Fabricators . | . . . . Repair Stations . | . . . . Recycling Units . | . . . . Scanalyzers . | . . . . Garrison Access . | . . . . Terminal Hacks 10 | . 7 3 . Record 1 | . . 1 . Part Schematic 1 | . 1 . . Prototype ID Bank 1 | . 1 . . Level Access Points 1 | . 1 . . Emergency Access Points 2 | . 2 . . Disarm Traps 1 | . 1 . . Surveillance Status 1 | . 1 . . Recall Assault 1 | . . 1 . Zone Layout 1 | . . 1 . Fabricator Hacks . | . . . . Repair Station Hacks . | . . . . Recycling Unit Hacks . | . . . . Scanalyzer . | . . . . Garrison Access Hacks . | . . . . Unauthorized Hacks . | . . . . Terminals . | . . . . Fabricators . | . . . . Repair Stations . | . . . . Recycling Units . | . . . . Scanalyzers . | . . . . Garrison Access . | . . . . Data Cores Recovered . | . . . . Used . | . . . . Hacking Detections 6 | . 4 2 . Full Trace Events 3 | . 2 1 . Feedback Events . | . . . . Feedback Blocked . | . . . . Robot Schematics Acquired . | . . . . Robots Built . | . . . . Matter . | . . . . Time . | . . . . Total Robot Build Rating . | . . . . Part Schematics Acquired 1 | . 1 . . Parts Built . | . . . . Matter . | . . . . Time . | . . . . Total Part Build Rating . | . . . . Parts Repaired . | . . . . Time . | . . . . Parts Recycled . | . . . . Recycled Matter . | . . . . Retrieved Matter . | . . . . Retrieved Components . | . . . . Parts Scanalyzed . | . . . . Part Schematics Acquired . | . . . . Parts Damaged . | . . . . Bothacking | -11 -10 -9 -9 ------------ Run | Scr Mat Mat Min Used RIF Installer . | . . . . Robots Hacked 1 | . . 1 . Non-combat . | . . . . Combat 1 | . . 1 . Robot Hacks Applied 1 | . . 1 . parse_system 1 | . . 1 . Relay Couplers Released . | . . . . Robots Rewired . | . . . . Allies Hacked . | . . . . Hacks Repelled . | . . . . Allies | -11 -10 -9 -9 -------- Run | Scr Mat Mat Min Total Allies . | . . . . Largest Group . | . . . . Highest-Rated Group . | . . . . Highest-Rated Ally . | . . . . Total Orders . | . . . . Ally Attacks . | . . . . Total Damage . | . . . . Kills . | . . . . Allies Corrupted . | . . . . Allies Melted . | . . . . Intel | -11 -10 -9 -9 ------- Run | Scr Mat Mat Min Robot Analysis Total . | . . . . Derelict Logs Recovered 1 | . . . 1 Drone Launches . | . . . . Drone Recoveries . | . . . . Exploration | -11 -10 -9 -9 ------------- Run | Scr Mat Mat Min Turns Passed 1601 | 59 443 1062 37 Spaces Moved 1001 | 57 448 471 25 Core 19 | 17 . 2 . Treads 160 | . . 160 . Legs 224 | . . 199 25 Wheels 507 | 40 448 19 . Hover . | . . . . Flight 91 | . . 91 . Fastest Speed 50 | 50 80 80 150 Average Speed 121 | 78 80 164 150 Slowest Speed 385 | 100 80 385 150 Overloaded Moves . | . . . . Propulsion Burnouts . | . . . . Robots Hopped . | . . . . Cave-ins Triggered . | . . . . Exploration Rate (%) 33 | 5 75 41 13 Regions Visited 3 Branch Regions 1 Pre-discovered Areas . | . . . . Known Exits Taken 1 | . 1 . . Unknown Exits Taken 2 | 1 . 1 . Scrap Searched . | . . . . Spaces Dug . | . . . . Terrain Destroyed 18 | . 2 16 . Melee . | . . . . Projectile 2 | . . 2 . AOE 16 | . 2 14 . Actions | -11 -10 -9 -9 --------- Run | Scr Mat Mat Min Total 1236 | 71 490 650 25 Wait 61 | . 4 57 . Move 998 | 56 447 470 25 Hop . | . . . . Pick Up 43 | 10 9 24 . Fast Attach . | . . . . Attach 24 | 5 3 16 . Detach . | . . . . Swap 9 | . 2 7 . Drop 4 | . 2 2 . Fire 92 | . 23 69 . Melee 1 | . . 1 . Ram . | . . . . Kick . | . . . . Crush 4 | . . 4 . Escape Stasis . | . . . . Rewire . | . . . . Trap . | . . . . Miscellaneous . | . . . . Route ------- -11/Scrapyard -10/Materials (discovered 4 exits: *Mat x3 / *Min) -9/Materials (discovered 3 exits: [*Mat x2] / [*Min]) -9/Mines History --------- Turn | Location | Event 45 | -11/Scrapyard | Discovered new exit (range 12) 60 | -11/Scrapyard | Entered Materials 198 | -10/Materials | Discovered new exit (range 14) 301 | -10/Materials | Build established: Mutant 306 | -10/Materials | Discovered new exit (range 12) 332 | -10/Materials | Identified exit to Materials 457 | -10/Materials | Identified exit to Mines 503 | -10/Materials | Entered another Materials area 503 | -9/Materials | Evolved 2 slots: Utility x2 729 | -9/Materials | Destroyed 8 combat bots 807 | -9/Materials | Discovered new exit (range 8) 912 | -9/Materials | Core integrity fell below 50% 952 | -9/Materials | Lost 5 parts (1p2n2w) 993 | -9/Materials | Discovered new exit (range 10) 1141 | -9/Materials | Core integrity fell below 20% 1196 | -9/Materials | Lost 4 parts (1p1n2w) 1286 | -9/Materials | Discovered new exit (range 16) 1479 | -9/Materials | Build established: Scavenger-Mutant 1565 | -9/Materials | Entered Mines 1566 | -9/Mines | Assembled infested the area 1570 | -9/Mines | Learned 2 Materials zone layouts 1571 | -9/Mines | Assisted by a Guerilla fighting off Assembled 1602 | -9/Mines | Destroyed by D-53 Grenadier with Mini Grenade Launcher Last Messages --------------- Acquired Aluminum Leg. K-01 Serf collects debris. Dropped Heat Sink. Acquired Imp. Heat Sink. K-01 Serf collects debris. LOCATION=UNKNOWN GOAL=ESCAPE Something is scanning the area. ALERT: Infestation in the mines, dispatching Demolisher response squad. Acquired derelict log, extracted data. Data stored: Materials zone layouts (x2). A derelict emerges from the shadows: "You need to get out of here! I've been tracking a group of Assembled to figure out where they're coming from, and they're closing on this area, come on!" D-53 Grenadier suffers critical hit. D-53 Grenadier knocked back. The unstable cave ceiling collapses. VS-87S(h) destroyed. The unstable cave ceiling collapses. Ion Cannon destroyed. Map ----- +----------------------------------------------------+ | | | ????????????????????????????????????? | | ????????????????????????????????????? | | ????????????????????????????????????? | | ????????????????????????????????????? | | ????????????????????????????????????? | | ?????????????????"??????????????????? | | ?????????????????"??????????????????? | | ???????????????? ??????????????????? | | ???????????????? "??????????????????? | | ???????????????? ""?????????????????? | | ??????????????"" ""???#?????????????? | | ????????????? #?????????????? | | ?????????????""" """ ##????????????? | | ??????????????"" """ ?????????????? | | ??????????????"" """ ??????????????? | | ?????????????? g ????????????????? | | ?????????????? ?????????????????? | | ?????????????## ##?????????????????? | | ????????????## ##????????????????? | | ?????????#### ##???????????????? | | ????????## """ #???????????????? | | ????????# """ #### #??????????? | | ????????# """ #??????????? | | ????????## t ###????????????? | | ?????????# @ #### ##??????????????? | | ?????????# #??###???????????????? | | ?????????# #????????????????????? | | ????????## ##??????????????????? | | ???????## ##?????????????????? | | ??????# #?????????????????? | | ?????# #?????????????????? | | ????# ##?????????????????? | | ???# # d #?????????????????? | | ??# d #?????????????????? | | ??# ## ?????????????????? | | ?# ? % # ????????????????? | | ?# ? ???????????????? | | ?## ?? ??????????????? | | ??# #??# # ? ?????????????? | | ??? ???## ### ???????????????? | | ????? ??????######??????????????????? | | ????????????????????????????????????? | | ????????????????????????????????????? | | ????????????????????????????????????? | | ????????????????????????????????????? | | ????????????????????????????????????? | | ????????????????????????????????????? | | ????????????????????????????????????? | | ????????????????????????????????????? | +----------------------------------------------------+ Best States ------------- Heat Dissipation 28 Energy Generation 14 Energy Capacity 250 Matter Stores 300 Matter Capacity 300 Sight Range 18 Terrain Scan Range 16 Terrain Scan Density 85 Resistance: KI 20 Resistance: TH 20 Resistance: EX 20 Resistance: EM 20 Resistance: I 20 Resistance: S 20 Resistance: P 20 Evasion (%) 44 Recoil Reduction 2 Offensive Hacking 10 Item Schematics ----------------- Datajack | -10/Materials | Hacked Robot Schematics ------------------ None Fabricated ------------ Nothing Alien Tech Used ----------------- None Achievements -------------- Fist Fight Challenges ------------ None Game ------ Seed PortableRagnarokFilter Manual? 0 Play Time 00:22:40 Cumulative 3.9 hours Start 2020.05.03 @ 16:58:12 End 2020.05.03 @ 17:21:05 Sessions 1 Manual Loads 0 Difficulty Adventurer Special Mode None Game No. 6 Rogue 0 Adventurer 6 Explorer 0 Win Type - Total 0 Types 0/0/0/0/0/0/0 Lore% 2 Gallery% 10 Achievement% 11 Wizard Run 0 Options --------- ASCII 0 Keyboard 0 Movement Mouse Keybinds 0 Fullscreen 2 Font 18/X11 Map View 76x50 Tactical HUD 0 Map Filters NONE Filters NONE Steam 1 RUN: d396b529-2129-457d-8871-48465097468d